bitfinex-derivatives/quotes_BNBF0:USTF0_20250220
["timestamp","ask_amount","ask_price","bid_price","bid_amount"]
[1740039519171,0.30889939,647.46,645.95,1.14803402]
[1740039519373,0.30889939,647.46,645.97,0.3096119]
[1740039521374,0.30889939,647.46,645.97,1.45764592]
[1740039524175,0.30889939,647.46,646.11,1.14803402]
[1740039524474,0.30889939,647.46,646.13,0.30953523]
[1740039533481,1.15329695,648.46,646.0,1.61323969]
[1740039533682,0.28383459,648.45,646.0,1.61323969]
[1740039533876,0.28383459,648.44,646.0,1.61323969]
[1740039534076,0.28383459,648.43,646.01,3.08247468]
[1740039534382,0.28383459,648.42,646.01,3.08247468]
[1740039534580,0.28383459,648.41,646.01,3.08247468]
[1740039534780,1.15329695,648.46,646.01,3.08247468]
[1740039534781,0.28383459,648.4,646.01,3.08247468]
[1740039534980,0.28383459,648.39,646.01,3.08247468]
[1740039535178,0.28383459,648.38,646.01,3.08247468]
[1740039535382,0.28383459,648.37,646.02,2.24005748]
[1740039535576,0.28383459,648.36,646.02,2.24005748]
[1740039535779,0.28383459,648.35,646.02,2.24005748]
[1740039535982,1.15329695,648.28,646.13,1.14803402]
[1740039536179,0.28383459,648.27,646.13,1.14803402]
[1740039536379,0.28383459,648.26,646.13,1.14803402]
[1740039536578,0.28383459,648.25,646.14,3.08247468]
[1740039536783,0.28383459,648.24,646.14,3.08247468]
[1740039537079,0.28383459,648.23,646.14,3.08247468]
[1740039537284,0.28383459,648.22,646.14,3.08247468]
[1740039537478,0.28383459,648.21,646.2,1.14803402]
[1740039537681,0.28383459,648.2,646.2,1.14803402]
[1740039537881,0.28383459,648.19,646.2,1.14803402]
[1740039538080,0.28383459,648.18,646.2,1.14803402]
[1740039538280,0.28383459,648.17,646.2,1.14803402]
[1740039538481,1.15329695,648.23,646.2,1.14803402]
[1740039538783,0.28383228,648.22,646.2,1.14803402]
[1740039539083,0.28383228,648.21,646.2,1.14803402]
[1740039539286,0.28383228,648.2,646.2,1.14803402]
[1740039539479,0.28383228,648.19,646.2,1.14803402]
[1740039539682,0.28383228,648.18,646.2,1.14803402]
[1740039539879,0.28383228,648.17,646.2,1.14803402]
[1740039540079,0.28383228,648.16,646.22,1.14803402]
[1740039540380,0.28383228,648.15,646.22,1.14803402]
[1740039540584,0.28383228,648.14,646.22,1.14803402]
[1740039540788,0.28383228,648.13,646.22,1.14803402]
[1740039541085,0.28383228,648.12,646.22,1.14803402]
[1740039541286,0.28383228,648.11,646.22,1.14803402]
[1740039541581,0.28383081,648.1,646.22,1.14803402]
[1740039541786,0.28383081,648.2,646.22,1.14803402]
[1740039541987,0.28383081,648.19,646.22,1.14803402]
[1740039542188,0.28383081,648.2,646.24,1.14803402]
[1740039542387,0.28383081,648.19,646.24,1.14803402]
[1740039542590,0.28383081,648.18,646.24,1.14803402]
[1740039542788,0.28383081,648.2,646.24,1.14803402]
[1740039542989,0.28383081,648.19,646.24,1.14803402]
[1740039543285,0.2838634,648.18,646.24,1.14803402]
[1740039543486,0.2838634,648.2,646.24,1.14803402]
[1740039544790,1.15329695,648.21,646.24,1.14803402]
[1740039544992,0.28386522,648.2,646.24,1.14803402]
[1740039545191,0.28386522,648.2,646.09,1.61332695]
[1740039545491,0.28386522,648.19,646.09,1.61332695]
[1740039545682,0.28386522,648.33,646.09,1.61332695]
[1740039545888,0.28386522,648.32,646.09,1.61332695]
[1740039546088,0.28386522,648.31,646.09,1.61332695]
[1740039546289,0.28386522,648.3,646.09,1.61332695]
[1740039546685,0.28386522,648.29,646.09,1.61332695]
[1740039546885,0.28386522,648.33,646.09,1.61332695]
[1740039547088,1.15329695,648.31,646.09,1.61332695]
[1740039547288,0.28386522,648.3,646.09,1.61332695]
[1740039547493,0.28386522,648.29,646.09,1.61332695]
[1740039547685,0.28386522,648.28,646.09,1.61332695]
[1740039547887,0.28386522,648.3,646.09,1.61332695]
[1740039548088,0.28386522,648.29,646.09,1.61332695]
[1740039548290,0.28383498,648.28,646.09,1.61332695]
[1740039548493,0.28383498,648.3,646.09,1.61332695]
[1740039548691,0.28383498,648.29,646.09,1.61332695]
[1740039548894,1.15329695,648.3,646.11,1.14803402]
[1740039549093,0.28383219,648.29,646.11,1.14803402]
[1740039550792,1.15329695,648.27,646.14,1.14803402]
[1740039550988,0.28383219,648.26,646.14,1.14803402]
[1740039551593,1.15329695,648.27,646.14,1.14803402]
[1740039551793,0.2837825,648.26,646.14,1.14803402]
[1740039552993,0.2837825,648.26,646.23,1.14803402]
[1740039553197,0.2837825,648.25,646.23,1.14803402]
[1740039553393,0.2837825,648.4,646.23,1.14803402]
[1740039553589,0.2837825,648.39,646.23,1.14803402]
[1740039553789,0.2837825,648.4,646.23,1.14803402]
[1740039553994,0.2837825,648.39,646.23,1.14803402]
[1740039554294,0.2837825,648.38,646.23,1.14803402]
[1740039554489,0.2837825,648.4,646.23,1.14803402]
[1740039554689,0.30849915,648.3,646.25,0.30947775]
[1740039554889,0.2837825,648.29,646.25,0.30947775]
[1740039555094,0.30851342,648.27,646.25,0.30947775]
[1740039555394,0.2837825,648.26,646.25,0.30947775]
[1740039555596,0.3085277,648.24,646.32,1.14803402]
[1740039555894,0.2837825,648.23,646.33,0.30943945]
[1740039556689,0.30854198,648.21,646.33,0.30943945]
[1740039556992,0.2837825,648.2,646.33,0.30943945]
[1740039557193,0.30855626,648.18,646.33,0.30943945]
[1740039557393,0.2837825,648.17,646.33,0.30943945]
[1740039557593,0.30857054,648.15,646.33,0.30943945]
[1740039557790,0.2837825,648.14,646.33,0.30943945]
[1740039558297,0.30858482,648.12,646.33,0.30943945]
[1740039558596,0.2837825,648.11,646.33,0.30943945]
[1740039558796,0.30859911,648.09,646.33,0.30943945]
[1740039558996,0.2837825,648.08,646.33,0.30943945]
[1740039559296,0.30861339,648.06,646.33,0.30943945]
[1740039559498,0.2837825,648.05,646.33,0.30943945]
[1740039559694,0.30862768,648.03,646.33,0.30943945]
[1740039561392,0.28374831,648.02,646.33,0.30943945]
[1740039561594,0.30863721,648.01,646.33,0.30943945]
[1740039561794,0.28374831,648.0,646.33,0.30943945]
[1740039562096,0.59239504,647.99,646.33,0.30943945]
[1740039562395,0.59239981,647.98,646.33,0.30943945]
[1740039562597,0.59240457,647.97,646.44,1.14803402]
[1740039562796,0.59240933,647.96,646.45,0.309382]
[1740039562995,0.30866579,647.95,646.45,0.309382]
[1740039563197,0.28376374,647.94,646.45,0.309382]
[1740039563397,0.30867531,647.93,646.45,0.309382]
[1740039564197,0.28376121,647.92,646.45,0.309382]
[1740039564391,0.30868484,647.91,646.45,0.309382]
[1740039564991,0.2837686,647.9,646.45,0.309382]
[1740039565196,0.30869437,647.89,646.45,0.309382]
[1740039574607,0.2837356,647.88,646.45,0.309382]
[1740039574900,0.30869437,647.89,646.45,0.309382]
[1740039576202,0.30869437,647.89,646.59,1.14803402]
[1740039577102,0.30869437,647.89,646.6,0.30931023]
[1740039597810,0.30869437,647.89,646.65,1.14803402]
[1740039598110,0.30869437,647.89,646.66,0.30928153]
[1740039599805,0.30869437,647.89,646.68,1.14803402]
[1740039600010,0.30869437,647.89,646.69,0.30926719]
[1740039600916,1.15329695,648.59,646.69,0.30926719]
[1740039601216,0.30837072,648.57,646.69,0.30926719]
[1740039601414,0.28360234,648.56,646.69,0.30926719]
[1740039601613,0.30838498,648.54,646.69,0.30926719]
[1740039601812,0.28360234,648.53,646.69,0.30926719]
[1740039602013,0.30839925,648.51,646.69,0.30926719]
[1740039602208,0.28360234,648.5,646.69,0.30926719]
[1740039602416,0.30841352,648.48,646.69,0.30926719]
[1740039602714,0.28360234,648.47,646.69,0.30926719]
[1740039602917,0.30842778,648.45,646.69,0.30926719]
[1740039603110,0.28360234,648.44,646.69,0.30926719]
[1740039603310,0.30844205,648.42,646.69,0.30926719]
[1740039603615,0.28360234,648.41,646.69,0.30926719]
[1740039603815,0.30845633,648.39,646.69,0.30926719]
[1740039604009,0.2836361,648.38,646.69,0.30926719]
[1740039604215,0.3084706,648.36,646.69,0.30926719]
[1740039604416,0.2836361,648.35,646.69,0.30926719]
[1740039604618,0.30848487,648.33,646.69,0.30926719]
[1740039604812,0.2836361,648.32,646.69,0.30926719]
[1740039605013,0.30849915,648.3,646.69,0.30926719]
[1740039605310,0.2836361,648.29,646.69,0.30926719]
[1740039605616,0.30851342,648.27,646.69,0.30926719]
[1740039605814,0.28364168,648.26,646.69,0.30926719]
[1740039606013,0.30852294,648.25,646.69,0.30926719]
[1740039617325,0.30852294,648.25,646.69,1.45730121]
[1740039620228,0.30852294,648.25,646.69,0.30926719]
[1740039629340,0.30852294,648.25,646.77,1.14803402]
[1740039631638,0.30852294,648.25,646.79,1.14803402]
[1740039633744,0.29957119,648.25,646.82,1.14803402]
[1740039636540,0.29957119,648.25,646.76,1.14803402]
[1740039637845,0.29957119,648.25,646.77,0.30922893]
[1740039641249,0.2836325,648.24,646.77,0.30922893]
[1740039641442,0.29957119,648.25,646.77,0.30922893]
[1740039641648,0.29957119,648.25,646.77,1.45726295]
[1740039642249,0.28365566,648.24,646.77,1.45726295]
[1740039642444,0.30853722,648.22,646.77,1.45726295]
[1740039642649,0.28365566,648.21,646.77,1.45726295]
[1740039642846,0.3085515,648.19,646.77,1.45726295]
[1740039643249,0.28368515,648.18,646.77,1.45726295]
[1740039644051,0.30856578,648.16,646.77,1.45726295]
[1740039644250,0.28368515,648.15,646.77,1.45726295]
[1740039644445,0.30858006,648.13,646.77,1.45726295]
[1740039644853,0.30858006,648.13,646.77,0.30922893]
[1740039645246,0.28370561,648.12,646.77,0.30922893]
[1740039646051,0.30859435,648.1,646.77,0.30922893]
[1740039646653,0.28369631,648.09,646.77,0.30922893]
[1740039647046,0.30860863,648.07,646.77,0.30922893]
[1740039647953,0.28370189,648.06,646.77,0.30922893]
[1740039648252,0.30861816,648.05,646.77,0.30922893]
[1740039649154,0.28370609,648.04,646.77,0.30922893]
[1740039649952,0.59236551,648.03,646.77,0.30922893]
[1740039650149,0.59237027,648.02,646.77,0.30922893]
[1740039650355,0.59237504,648.01,646.77,0.30922893]
[1740039650553,0.5923798,648.0,646.77,0.30922893]
[1740039650752,0.59238456,647.99,646.77,0.30922893]
[1740039650952,0.59238933,647.98,646.77,0.30922893]
[1740039651151,0.59239409,647.97,646.77,0.30922893]
[1740039651357,0.59239885,647.96,646.77,0.30922893]
[1740039651552,0.30866579,647.95,646.77,0.30922893]
[1740039653152,0.28374804,647.94,646.77,0.30922893]
[1740039653351,0.30867531,647.93,646.77,0.30922893]
[1740039670673,0.30867531,647.93,646.77,0.30029769]
[1740039682079,0.30867531,647.93,646.73,1.61256067]
[1740039687787,0.30867531,647.93,645.93,1.14803402]
[1740039688084,0.30867531,647.93,646.67,1.6125669]
[1740039688284,0.30867531,647.93,645.95,0.30962148]
[1740039688485,0.30867531,647.93,646.67,1.61254822]
[1740039688786,0.30867531,647.93,645.95,0.30962148]
[1740039689182,0.30867531,647.93,646.67,1.61259804]
[1740039689382,0.30867531,647.93,645.95,0.30962148]
[1740039689581,0.30867531,647.93,645.96,1.61307767]
[1740039689781,0.28388499,647.92,645.98,0.3096071]
[1740039689986,0.30868961,647.9,645.98,0.3096071]
[1740039690186,0.28388499,647.89,645.98,0.3096071]
[1740039690387,0.3087039,647.87,645.98,0.3096071]
[1740039690587,0.28388499,647.86,645.98,0.3096071]
[1740039690787,0.3087182,647.84,645.98,0.3096071]
[1740039690985,0.2838868,647.83,645.98,0.3096071]
[1740039691181,0.30873249,647.81,645.98,0.3096071]
[1740039691382,0.2838868,647.8,645.98,0.3096071]
[1740039691584,0.30874679,647.78,645.98,0.3096071]
[1740039691786,0.2838868,647.77,645.98,0.3096071]
[1740039691991,0.30876109,647.75,645.98,0.3096071]
[1740039692191,0.2838868,647.74,645.98,0.3096071]
[1740039692386,0.30877539,647.72,645.98,0.3096071]
[1740039692592,0.2838868,647.71,645.98,0.3096071]
[1740039692891,0.30878969,647.69,645.98,0.3096071]
[1740039693092,0.2838868,647.68,645.98,0.3096071]
[1740039693293,0.30879923,647.67,645.98,0.3096071]
[1740039693592,0.2838868,647.66,645.98,0.3096071]
[1740039693797,0.30880877,647.65,645.98,0.3096071]
[1740039694297,0.28387912,647.64,645.98,0.3096071]
[1740039694597,0.30880877,647.65,645.98,0.3096071]
[1740039702900,0.28387773,647.64,645.98,0.3096071]
[1740039704503,0.3088183,647.63,645.98,0.3096071]
[1740039720810,0.3088183,647.63,646.17,1.14803402]
[1740039721009,0.3088183,647.63,646.18,0.30951128]
[1740039728623,0.3088183,647.63,646.18,1.4575453]
[1740039730922,0.3088183,647.63,646.18,0.30951128]
[1740039733827,0.3088183,647.63,646.29,1.14803402]
[1740039735428,0.3088183,647.63,646.3,0.30945381]
[1740039736534,0.3088183,647.63,646.33,1.14803402]
[1740039737225,0.3088183,647.63,646.33,1.45747347]
[1740039739733,0.3088183,647.63,646.33,0.30943945]
[1740039776058,0.3088183,647.63,646.43,1.14803402]
[1740039778259,0.3088183,647.63,646.38,1.14803402]
[1740039778760,0.3088183,647.63,646.39,0.30941072]
[1740039799576,0.3088183,647.63,646.62,1.14803402]
[1740039801481,0.3088183,647.63,646.45,1.61268522]
[1740039801679,0.3088183,647.63,646.46,0.30937722]
[1740039812780,0.3088183,647.63,646.62,1.14803402]
[1740039812978,1.15329695,648.44,646.63,0.30929588]
[1740039813284,0.30844205,648.42,646.63,0.30929588]
[1740039813482,0.2836557,648.41,646.63,0.30929588]
[1740039813679,0.30845633,648.39,646.63,0.30929588]
[1740039813882,0.2836557,648.38,646.63,0.30929588]
[1740039814083,0.3084706,648.36,646.63,0.30929588]
[1740039814278,0.2836557,648.35,646.63,0.30929588]
[1740039814680,0.30848487,648.33,646.63,0.30929588]
[1740039814884,0.2836557,648.32,646.63,0.30929588]
[1740039815186,0.30849915,648.3,646.63,0.30929588]
[1740039815385,0.2836557,648.29,646.63,0.30929588]
[1740039815585,0.30851342,648.27,646.63,0.30929588]
[1740039816388,0.30851342,648.27,646.82,1.14803402]
[1740039819488,0.30851342,648.27,646.63,0.30929588]
[1740039822185,0.30851342,648.27,646.66,1.14803402]
[1740039822389,0.30851342,648.27,646.67,0.30927675]
[1740039830797,0.30851342,648.27,646.8,1.14803402]
[1740039830997,0.30851342,648.27,646.81,0.30920981]
[1740039856919,0.30851342,648.27,646.93,1.14803402]
[1740039857114,0.30851342,648.27,646.95,0.3091429]
[1740039859917,0.30851342,648.27,647.11,1.14803402]
[1740039860117,0.30851342,648.27,647.12,0.30906168]
[1740039862222,0.30851342,648.27,647.12,1.4570957]
[1740039866121,0.30851342,648.27,647.12,0.30906168]
[1740039866525,1.15329695,649.22,647.12,0.30906168]
[1740039866726,0.30810944,649.12,647.12,0.30906168]
[1740039876329,0.28336252,649.11,647.12,0.30906168]
[1740039876530,0.30812368,649.09,647.12,0.30906168]
[1740039876730,0.28336252,649.08,647.12,0.30906168]
[1740039876927,0.30813792,649.06,647.12,0.30906168]
[1740039877127,0.28336252,649.05,647.12,0.30906168]
[1740039877325,0.30815216,649.03,647.12,0.30906168]
[1740039877527,0.28336252,649.02,647.12,0.30906168]
[1740039877833,0.3081664,649.0,647.12,0.30906168]
[1740039878128,0.28336252,648.99,647.12,0.30906168]
[1740039878327,0.3081664,649.0,647.12,0.30906168]
[1740039888442,0.28334091,648.99,647.12,0.30906168]
[1740039888641,0.30818065,648.97,647.12,0.30906168]
[1740039888844,0.28334091,648.96,647.12,0.30906168]
[1740039889241,0.3081949,648.94,647.12,0.30906168]
[1740039891940,0.3081949,648.94,647.36,1.14803402]
[1740039892139,0.3081949,648.94,647.37,0.30894233]
[1740039894040,0.3081949,648.94,647.41,1.14803402]
[1740039894743,0.3081949,648.94,647.42,0.30891847]
[1740039896948,0.3081949,648.94,647.47,1.14803402]
[1740039898548,0.3081949,648.94,647.49,0.30888507]
[1740039900051,0.3081949,648.94,647.68,1.14803402]
[1740039900550,0.3081949,648.94,647.69,0.30878969]
[1740039938776,0.3081949,648.94,647.72,1.14803402]
[1740039941079,0.3081949,648.94,647.82,1.14803402]
[1740039942983,0.3081949,648.94,647.8,1.14803402]
[1740039945886,0.3081949,648.94,647.69,0.30878969]
[1740039945887,0.3081949,648.94,647.84,1.14803402]
[1740039949385,0.3081949,648.94,647.77,1.14803402]
[1740039951388,0.3081949,648.94,647.79,1.14803402]
[1740039956692,0.3081949,648.94,647.75,1.14803402]
[1740039959592,0.3081949,648.94,647.71,1.60981928]
[1740039988314,0.3081949,648.94,647.73,1.14803402]
[1740039988817,0.3081949,648.94,647.74,0.30876586]
[1740039990312,0.3081949,648.94,647.82,1.14803402]
[1740039992215,0.3081949,648.94,647.75,1.60967656]
[1740040003826,0.3081949,648.94,647.76,0.30875632]
[1740040008430,0.3081949,648.94,647.82,1.14803402]
[1740040008631,0.3081949,648.94,647.83,0.30872296]
[1740040015333,1.15329695,649.87,647.83,0.30872296]
[1740040015534,0.30776332,649.85,647.83,0.30872296]
[1740040015735,0.28304698,649.84,647.83,0.30872296]
[1740040016332,0.30777753,649.82,647.83,0.30872296]
[1740040016531,0.28304698,649.81,647.83,0.30872296]
[1740040016732,0.30779174,649.79,647.83,0.30872296]
[1740040016930,0.28304698,649.78,647.83,0.30872296]
[1740040017136,0.30780595,649.76,647.83,0.30872296]
[1740040017534,0.28302322,649.75,647.83,0.30872296]
[1740040017836,0.30782017,649.73,647.83,0.30872296]
[1740040018037,0.28302322,649.72,647.83,0.30872296]
[1740040018340,0.30783438,649.7,647.83,0.30872296]
[1740040018635,0.28302322,649.69,647.83,0.30872296]
[1740040018841,0.3078486,649.67,647.83,0.30872296]
[1740040019034,0.28302322,649.66,647.83,0.30872296]
[1740040019231,0.30786281,649.64,647.83,0.30872296]
[1740040019539,0.28302322,649.63,647.83,0.30872296]
[1740040019739,0.30787229,649.62,647.83,0.30872296]
[1740040019940,0.28302322,649.61,647.83,0.30872296]
[1740040020139,0.30788651,649.59,647.83,0.30872296]
[1740040021632,0.30788651,649.59,647.94,1.14803402]
[1740040021835,0.30788651,649.59,647.95,0.30866579]
[1740040030248,0.28301033,649.58,647.95,0.30866579]
[1740040030449,0.30789599,649.57,647.95,0.30866579]
[1740040031650,0.28300964,649.56,647.95,0.30866579]
[1740040033254,0.30790547,649.55,647.95,0.30866579]
[1740040033553,0.28300964,649.54,647.95,0.30866579]
[1740040033753,0.30791495,649.53,647.95,0.30866579]
[1740040034753,0.30791495,649.53,647.97,1.14803402]
[1740040035756,0.30791495,649.53,647.98,0.3086515]
[1740040045763,0.30791495,649.53,648.07,1.14803402]
[1740040045963,0.30791495,649.53,648.07,1.45664265]
[1740040047658,0.30791495,649.53,648.12,1.14803402]
[1740040050366,0.28302086,649.52,648.12,1.14803402]
[1740040050567,0.30792443,649.51,648.26,1.14803402]
[1740040053261,0.30792443,649.51,648.36,1.14803402]
[1740040055261,0.30792443,649.51,648.34,1.14803402]
[1740040059971,0.30792443,649.51,648.31,1.14803402]
[1740040062472,0.30792443,649.51,648.28,1.14803402]
[1740040064969,0.30792443,649.51,648.15,1.60887656]
[1740040070876,0.28309966,649.5,648.15,1.60887656]
[1740040071077,0.30793865,649.48,648.15,1.60887656]
[1740040071276,0.28309966,649.47,648.15,1.60887656]
[1740040071473,0.30795288,649.45,648.15,1.60887656]
[1740040071875,0.28311518,649.44,648.15,1.60887656]
[1740040072678,0.3079671,649.42,648.15,1.60887656]
[1740040072880,0.28311518,649.41,648.15,1.60887656]
[1740040073076,0.30798133,649.39,648.15,1.60887656]
[1740040073380,0.28311518,649.38,648.15,1.60887656]
[1740040073579,0.30799556,649.36,648.15,1.60887656]
[1740040073780,0.28311518,649.35,648.15,1.60887656]
[1740040074078,0.30800979,649.33,648.15,1.60887656]
[1740040074282,0.28311518,649.32,648.15,1.60887656]
[1740040074479,0.28316625,649.31,648.15,1.60887656]
[1740040074783,0.30802876,649.29,648.15,1.60887656]
[1740040074976,0.28316625,649.28,648.15,1.60887656]
[1740040075179,0.308043,649.26,648.15,1.60887656]
[1740040090384,0.308043,649.26,648.16,0.30856578]
[1740040110095,0.308043,649.26,648.2,1.14803402]
[1740040112197,0.308043,649.26,648.16,0.30856578]
[1740040112198,0.308043,649.26,648.29,1.14803402]
[1740040114998,0.308043,649.26,648.25,1.14803402]
[1740040117897,0.308043,649.26,648.27,1.14803402]
[1740040120804,0.308043,649.26,648.28,1.14803402]
[1740040124304,0.308043,649.26,648.29,1.14803402]
[1740040126005,0.308043,649.26,648.28,1.14803402]
[1740040130914,0.308043,649.26,648.24,1.60877119]
[1740040146526,0.308043,649.26,648.29,1.14803402]
[1740040149638,0.308043,649.26,648.35,1.14803402]
[1740040152140,0.308043,649.26,648.33,1.14803402]
[1740040156844,0.308043,649.26,648.28,1.608765]
[1740040192664,0.308043,649.26,648.3,1.14803402]
[1740040195265,0.308043,649.26,648.28,1.608765]
[1740040203969,0.308043,649.26,648.32,1.14803402]
[1740040206175,0.308043,649.26,648.41,1.14803402]
[1740040209277,0.308043,649.26,648.4,1.14803402]
[1740040212184,0.308043,649.26,648.38,1.14803402]
[1740040214585,0.308043,649.26,648.33,1.60836845]
[1740040216781,1.15329695,650.15,648.33,1.60836845]
[1740040216981,0.30763078,650.13,648.33,1.60836845]
[1740040217287,0.28292684,650.12,648.33,1.60836845]
[1740040217485,0.30764497,650.1,648.33,1.60836845]
[1740040218290,0.2829201,650.09,648.33,1.60836845]
[1740040218494,0.30765917,650.07,648.33,1.60836845]
[1740040221590,0.28290832,650.06,648.33,1.60836845]
[1740040221794,0.30767337,650.04,648.33,1.60836845]
[1740040222592,0.28292015,650.03,648.33,1.60836845]
[1740040222790,0.30767337,650.04,648.33,1.60836845]
[1740040223096,0.2829213,650.03,648.33,1.60836845]
[1740040223288,0.30768757,650.01,648.33,1.60836845]
[1740040223596,0.2829163,650.0,648.33,1.60836845]
[1740040223888,0.30770177,649.98,648.33,1.60836845]
[1740040224094,0.2829163,649.97,648.33,1.60836845]
[1740040224492,0.30771597,649.95,648.33,1.60836845]
[1740040224697,0.2829163,649.94,648.33,1.60836845]
[1740040224896,0.30773018,649.92,648.33,1.60836845]
[1740040225098,0.2829163,649.91,648.33,1.60836845]
[1740040225293,0.30774438,649.89,648.33,1.60836845]
[1740040232297,0.2829316,649.88,648.33,1.60836845]
[1740040232496,0.30775859,649.86,648.33,1.60836845]
[1740040232701,0.2829316,649.85,648.33,1.60836845]
[1740040233203,0.3077728,649.83,648.33,1.60836845]
[1740040233399,0.2829316,649.82,648.33,1.60836845]
[1740040233602,0.30778227,649.81,648.33,1.60836845]
[1740040233795,0.2829316,649.8,648.33,1.60836845]
[1740040234002,0.30779174,649.79,648.33,1.60836845]
[1740040234204,0.2829316,649.78,648.33,1.60836845]
[1740040234405,0.2829316,649.78,648.5,1.14803402]
[1740040235304,0.2829135,649.77,648.5,1.14803402]
[1740040235604,0.2829135,649.76,648.5,1.14803402]
[1740040235804,0.30779174,649.79,648.5,1.14803402]
[1740040235805,0.2829135,649.78,648.5,1.14803402]
[1740040236002,0.30781069,649.75,648.5,1.14803402]
[1740040236402,0.30781069,649.75,648.52,1.14803402]
[1740040238611,0.30781069,649.75,648.42,1.14803402]
[1740040240315,0.30781069,649.75,648.4,1.60833128]
[1740040242619,0.30781069,649.75,648.41,1.14803402]
[1740040244913,0.30781069,649.75,648.4,1.60833128]
[1740040249424,0.30781069,649.75,648.52,1.14803402]
[1740040251522,0.30781069,649.75,648.45,1.6081207]
[1740040254518,0.30781069,649.75,648.45,2.75615472]
[1740040254720,0.30781069,649.75,648.46,0.30842303]
[1740040257027,0.30781069,649.75,648.57,1.14803402]
[1740040259029,0.30781069,649.75,648.46,0.30842303]
[1740040279944,0.30781069,649.75,648.45,1.6081207]
[1740040288952,0.28300067,649.74,648.45,1.6081207]
[1740040290450,0.3078249,649.72,648.45,1.6081207]
[1740040290649,0.28300067,649.71,648.45,1.6081207]
[1740040291045,0.30783912,649.69,648.45,1.6081207]
[1740040291253,0.28300067,649.68,648.45,1.6081207]
[1740040291451,0.30785333,649.66,648.45,1.6081207]
[1740040319069,0.28301645,649.65,648.45,1.6081207]
[1740040319474,0.28300872,649.64,648.45,1.6081207]
[1740040319668,0.59087627,649.63,648.45,1.6081207]
[1740040319873,0.30787703,649.61,648.45,1.6081207]
[1740040331586,0.30787703,649.61,648.45,2.75615472]
[1740040333887,0.30787703,649.61,648.45,1.6081207]
[1740040338784,0.30787703,649.61,648.46,1.14803402]
[1740040341889,0.30787703,649.61,648.45,1.6081207]
[1740040343593,0.30787703,649.61,648.46,0.30842303]
[1740040344589,0.30787703,649.61,648.46,1.45645705]
[1740040347599,0.30787703,649.61,648.46,0.30842303]
[1740040359408,0.30787703,649.61,648.47,1.14803402]
[1740040359604,0.30787703,649.61,648.47,1.45645229]
[1740040361506,0.30787703,649.61,648.53,1.14803402]
[1740040361806,0.30787703,649.61,648.54,0.30838498]
[1740040370014,0.30787703,649.61,648.59,1.14803402]
[1740040372410,0.30787703,649.61,648.54,0.30838498]
[1740040372411,0.30787703,649.61,648.71,1.14803402]
[1740040374417,0.30787703,649.61,648.66,1.14803402]
[1740040376418,0.30787703,649.61,648.54,0.30838498]
[1740040376419,0.30787703,649.61,648.75,1.14803402]
[1740040379621,0.30787703,649.61,648.68,1.14803402]
[1740040382721,0.30787703,649.61,648.58,1.60760688]
[1740040422047,0.29459001,649.61,648.58,1.60760688]
[1740040423952,0.29459001,649.61,648.63,1.14803402]
[1740040428756,0.29459001,649.61,648.58,1.60760688]
[1740040441357,0.29459001,649.61,648.3,1.14803402]
[1740040441756,0.29459001,649.61,648.51,1.60819502]
[1740040441958,0.29459001,649.61,648.3,1.14803402]
[1740040442158,0.29459001,649.61,648.51,1.60823837]
[1740040442456,0.29459001,649.61,648.3,1.14803402]
[1740040442657,0.29459001,649.61,648.51,1.60823837]
[1740040445163,0.29459001,649.61,648.51,1.59555932]
[1740040445858,0.29459001,649.61,648.11,1.14803402]
[1740040446266,0.29459001,649.61,648.44,1.60823218]
[1740040446471,0.29459001,649.61,648.11,1.14803402]
[1740040446669,0.29459001,649.61,648.43,1.60829411]
[1740040447061,0.29459001,649.61,648.11,1.14803402]
[1740040447268,0.29459001,649.61,648.43,1.60828173]
[1740040447467,0.29459001,649.61,648.11,1.14803402]
[1740040447666,0.29459001,649.61,648.43,1.60834367]
[1740040451769,0.29459001,649.61,648.09,1.14803402]
[1740040451970,0.29459001,649.61,648.29,1.60854811]
[1740040452270,0.29459001,649.61,648.09,1.14803402]
[1740040452464,0.29459001,649.61,648.29,1.60865964]
[1740040452664,0.29459001,649.61,648.09,1.14803402]
[1740040453171,0.29459001,649.61,648.29,1.60865964]
[1740040453367,0.29459001,649.61,647.91,1.14803402]
[1740040453565,0.29459001,649.61,648.1,1.60878359]
[1740040453767,0.29459001,649.61,647.92,0.30868008]
[1740040453968,0.29459001,649.61,648.1,1.60872781]
[1740040454372,0.29459001,649.61,647.92,0.30868008]
[1740040454570,0.29459001,649.61,648.1,1.60872781]
[1740040454774,0.29459001,649.61,647.92,0.30868008]
[1740040454974,0.28306524,649.6,647.92,0.30868008]
[1740040455175,0.28306524,649.6,648.1,1.60877739]
[1740040455377,0.28306524,649.6,647.92,0.30868008]
[1740040455571,0.30789125,649.58,647.93,1.60926716]
[1740040456877,0.30789125,649.58,647.93,1.91794247]
[1740040458573,0.28307088,649.57,647.93,1.91794247]
[1740040458771,0.30790547,649.55,647.93,1.91794247]
[1740040468083,0.28308283,649.54,647.93,1.91794247]
[1740040468284,0.30791969,649.52,647.93,1.91794247]
[1740040470480,0.28308645,649.51,647.93,1.91794247]
[1740040470681,0.30793391,649.49,647.93,1.91794247]
[1740040470983,0.28308645,649.48,647.93,1.91794247]
[1740040471182,0.30794814,649.46,647.93,1.91794247]